bitfinex/quotes_SOLUSD_20250415
["timestamp","ask_amount","ask_price","bid_price","bid_amount"]
[1744744188114,32.81294978,128.54,128.53,0.063]
[1744744189319,39.01694978,128.54,128.53,0.063]
[1744744189505,39.01694978,128.54,128.52,0.063]
[1744744189709,50.06654062,128.53,128.49,11.12]
[1744744189917,33.43287816,128.54,128.46,0.063]
[1744744189918,25.03327031,128.51,128.46,0.063]
[1744744190223,52.26850491,128.51,128.46,0.063]
[1744744190390,25.03327031,128.47,128.46,0.063]
[1744744192313,82.6569079,128.47,128.46,1e-08]
[1744744192607,102.11670396,128.47,128.38,80.1539572]
[1744744192908,25.03327031,128.4,128.38,80.1539572]
[1744744193107,51.03327031,128.46,128.38,80.1539572]
[1744744193108,25.03327031,128.42,128.38,80.1539572]
[1744744193515,25.03327031,128.41,128.38,80.1539572]
[1744744194721,19.46289085,128.45,128.35,0.063]
[1744744194722,25.03327031,128.39,128.35,0.063]
[1744744195016,25.03327031,128.37,128.35,0.063]
[1744744195203,32.8214323,128.4,128.35,0.063]
[1744744195204,25.03327031,128.38,128.35,0.063]
[1744744196021,25.03327031,128.38,128.29,172.63607329]
[1744744196022,26.0,128.32,128.28,0.063]
[1744744196222,25.03327031,128.29,128.28,0.063]
[1744744197206,50.06654062,128.29,128.28,0.063]
[1744744197406,25.03327031,128.29,128.28,0.063]
[1744744198133,32.82811012,128.29,128.28,0.063]
[1744744202536,57.86138043,128.29,128.28,1e-08]
[1744744202728,6.4101,128.28,128.25,0.063]
[1744744203039,25.03327031,128.26,128.25,0.063]
[1744744204040,27.28193935,128.29,128.25,0.063]
[1744744204211,7.79605519,128.27,128.25,0.063]
[1744744204541,32.8293255,128.27,128.25,0.063]
[1744744206113,45.48422407,128.31,128.25,25.09627031]
[1744744206309,7.79423226,128.3,128.26,25.03327031]
[1744744207415,25.03327031,128.29,128.25,25.23843188]
[1744744207949,25.03327031,128.29,128.25,0.20516157]
[1744744209140,25.03327031,128.29,128.25,25.23843188]
[1744744209433,7.79362481,128.31,128.28,25.03327031]
[1744744209621,25.03327031,128.34,128.29,25.17543188]
[1744744210625,32.82507333,128.34,128.29,25.17543188]
[1744744211532,32.82507333,128.34,128.3,25.03327031]
[1744744211920,7.79180302,128.34,128.3,25.03327031]
[1744744213047,7.79180302,128.34,128.31,25.03327031]
[1744744213417,7.79180302,128.34,128.3,25.03327031]
[1744744213841,7.79138859,128.35,128.31,25.17543188]
[1744744214819,7.79138859,128.35,128.31,36.43543188]
[1744744215221,25.03327031,128.33,128.31,11.26]
[1744744215429,25.03327031,128.32,128.27,36.29327031]
[1744744215627,25.03327031,128.3,128.27,11.26]
[1744744215832,25.03327031,128.28,128.25,80.2169572]
[1744744216028,25.03327031,128.34,128.28,0.14216157]
[1744744216227,51.03327031,128.34,128.29,25.03327031]
[1744744216428,25.03327031,128.32,128.28,0.14216157]
[1744744216942,32.82750257,128.3,128.26,36.29327031]
[1744744217123,7.7935601,128.32,128.29,25.03327031]
[1744744217622,7.7935601,128.32,128.28,25.03327031]
[1744744217819,7.79180302,128.34,128.31,25.03327031]
[1744744218014,45.06327031,128.4,128.33,25.17543188]
[1744744218015,7.79053606,128.37,128.33,25.17543188]
[1744744218214,7.78914584,128.39,128.36,25.03327031]
[1744744218628,7.78914584,128.39,128.35,25.17543188]
[1744744218941,7.78914584,128.39,128.36,25.03327031]
[1744744219932,7.78914584,128.39,128.35,25.03327031]
[1744744221042,25.03327031,128.39,128.34,25.17543188]
[1744744221245,25.03327031,128.39,128.31,91.4139572]
[1744744221246,25.03327031,128.35,128.31,91.4139572]
[1744744221423,25.03327031,128.34,128.31,91.4139572]
[1744744221623,25.03327031,128.33,128.31,91.4139572]
[1744744222034,51.03327031,128.35,128.31,91.4139572]
[1744744222232,25.03327031,128.34,128.31,91.4139572]
[1744744223141,7.79241019,128.33,128.31,91.4139572]
[1744744223342,0.03,128.4,128.32,25.17543188]
[1744744223548,19.47376371,128.38,128.33,25.03327031]
[1744744223748,44.50703402,128.38,128.33,25.03327031]
[1744744224246,25.03327031,128.36,128.32,0.14216157]
[1744744225365,25.03327031,128.36,128.32,25.17543188]
[1744744225741,7.79119594,128.35,128.32,25.17543188]
[1744744225934,7.78876859,128.39,128.34,25.17543188]
[1744744226145,7.78876859,128.39,128.36,25.03327031]
[1744744226531,7.78876859,128.39,128.35,25.03327031]
[1744744227138,7.78876859,128.39,128.36,25.17543188]
[1744744227747,7.78876859,128.39,128.37,25.03327031]
[1744744227955,7.78876859,128.39,128.36,36.49543188]
[1744744228350,7.78876859,128.39,128.37,25.03327031]
[1744744228651,7.78876859,128.39,128.36,36.49543188]
[1744744229452,25.03327031,128.38,128.36,11.32]
[1744744229651,25.03327031,128.37,128.36,11.32]
[1744744229859,25.03327031,128.37,128.33,0.14216157]
[1744744230035,25.03327031,128.38,128.33,25.17543188]
[1744744230236,52.32183728,128.4,128.35,25.03327031]
[1744744230437,27.28856697,128.4,128.36,25.03327031]
[1744744230645,27.28856697,128.4,128.34,0.14216157]
[1744744230646,0.03,128.4,128.37,36.35327031]
[1744744230844,0.03,128.4,128.38,25.03327031]
[1744744231744,0.03,128.4,128.37,36.35327031]
[1744744232649,25.06327031,128.4,128.37,11.32]
[1744744232847,0.03,128.4,128.37,11.32]
[1744744233142,0.03,128.4,128.38,25.03327031]
[1744744233348,0.03,128.4,128.37,36.35327031]
[1744744234137,0.03,128.4,128.37,11.32]
[1744744235063,0.03,128.4,128.37,36.35327031]
[1744744235361,7.81816199,128.4,128.37,36.35327031]
[1744744237762,7.81816199,128.4,128.37,11.32]
[1744744238365,7.81816199,128.4,128.29,1.063]
[1744744238366,26.0,128.38,128.29,1.063]
[1744744238537,25.03327031,128.31,128.29,0.063]
[1744744238744,25.03327031,128.34,128.29,0.063]
[1744744238745,25.03327031,128.3,128.29,0.063]
[1744744239648,32.82750257,128.3,128.29,0.063]
[1744744241745,52.31308324,128.3,128.26,80.1539572]
[1744744241953,25.03327031,128.29,128.25,0.063]
[1744744242151,25.03327031,128.28,128.25,0.063]
[1744744242357,25.03327031,128.29,128.25,0.063]
[1744744243347,27.28406609,128.28,128.25,0.063]
[1744744243551,52.3173364,128.28,128.25,0.063]
[1744744243748,25.03327031,128.27,128.25,0.063]
[1744744245456,32.82993333,128.26,128.25,0.063]
[1744744246268,32.82993333,128.26,128.25,1e-08]
[1744744247151,7.79666302,128.26,128.25,1e-08]
[1744744247683,7.79666302,128.26,128.25,25.03327032]
[1744744248253,7.79666302,128.26,128.25,1e-08]
[1744744248971,7.79634746,128.27,128.25,1e-08]
[1744744249379,7.79544745,128.28,128.25,1e-08]
[1744744251075,32.82871776,128.28,128.25,1e-08]
[1744744251472,25.03327031,128.27,128.25,1e-08]
[1744744253367,7.79666302,128.26,128.25,1e-08]
[1744744254979,32.82993333,128.26,128.25,1e-08]
[1744744257987,7.79666302,128.26,128.25,1e-08]
[1744744258288,7.79483981,128.29,128.25,25.03327032]
[1744744258590,7.79483981,128.29,128.26,25.03327031]
[1744744260292,52.31520966,128.29,128.25,11.18000001]
[1744744260503,25.03327031,128.28,128.25,11.18000001]
[1744744260988,25.03327031,128.27,128.25,11.18000001]
[1744744261602,27.28193935,128.29,128.25,11.18000001]
[1744744261785,25.03327031,128.27,128.25,1e-08]
[1744744261971,7.79666302,128.26,128.25,1e-08]
[1744744264599,7.79605519,128.27,128.25,1e-08]
[1744744264970,7.79564439,128.28,128.25,1e-08]
[1744744265181,7.79423226,128.3,128.27,25.03327031]
[1744744265395,7.79423226,128.3,128.28,25.03327031]
[1744744265574,7.79390696,128.31,128.29,25.03327031]
[1744744265891,0.03,128.32,128.31,0.14216157]
[1744744266379,0.03,128.32,128.31,25.17543188]
[1744744268004,0.03,128.32,128.31,34.53145669]
[1744744268191,0.03,128.32,128.31,80.29611877]
[1744744268372,0.03,128.32,128.27,254.4]
[1744744268373,25.06327031,128.32,128.27,244.7824]
[1744744268577,25.06327031,128.32,128.29,25.03327031]
[1744744268578,0.03,128.32,128.29,25.03327031]
[1744744268778,25.06327031,128.32,128.27,244.7824]
[1744744269111,0.03,128.32,128.28,25.03327031]
[1744744269280,0.03,128.32,128.29,25.03327031]
[1744744270201,25.03327031,128.3,128.27,243.22]
[1744744270905,7.79483981,128.29,128.27,243.22]
[1744744272308,32.82811012,128.29,128.27,243.22]
[1744744272613,32.82811012,128.29,128.26,11.18]
[1744744272915,7.79483981,128.29,128.26,11.18]
[1744744274284,7.79483981,128.29,128.26,36.21327031]
[1744744274810,7.79483981,128.29,128.27,25.03327031]
[1744744275009,7.05883981,128.29,128.27,25.03327031]
[1744744275308,0.03,128.32,128.28,25.17543188]
[1744744275490,0.03,128.32,128.3,25.03327031]
[1744744275812,0.03,128.32,128.29,25.03327031]
[1744744280011,25.03327031,128.3,128.27,26.0]
[1744744280896,25.03327031,128.3,128.25,1e-08]
[1744744280897,25.03327031,128.28,128.25,1e-08]
[1744744281093,25.03327031,128.29,128.25,1e-08]
[1744744281397,25.03327031,128.3,128.25,0.14216158]
[1744744281604,25.03327031,128.3,128.26,25.03327031]
[1744744281915,7.79483981,128.29,128.26,25.03327031]
[1744744282318,32.82811012,128.29,128.24,25.03327031]
[1744744282615,32.82811012,128.29,128.25,26.0]
[1744744282820,7.79483981,128.29,128.25,51.03327031]
[1744744283210,7.79483981,128.29,128.24,25.03327031]
[1744744283211,52.31520966,128.29,128.24,25.03327031]
[1744744283420,25.03327031,128.25,128.22,11.243]
[1744744283593,25.03327031,128.24,128.22,11.243]
[1744744283793,7.79787897,128.24,128.22,11.243]
[1744744284092,32.83114928,128.24,128.22,11.243]
[1744744284292,7.79787897,128.24,128.22,11.243]
[1744744284494,32.83114928,128.24,128.22,11.243]
[1744744285102,32.83114928,128.24,128.22,0.063]
[1744744285309,25.03327031,128.23,128.22,0.063]
[1744744285897,32.8317574,128.23,128.22,0.063]
[1744744286211,7.79848709,128.23,128.22,0.063]
[1744744286905,7.79817701,128.24,128.22,25.09627031]
[1744744287104,7.79483981,128.29,128.24,0.14216157]
[1744744287295,7.79483981,128.29,128.28,25.03327031]
[1744744287705,7.79483981,128.29,128.27,25.03327031]
[1744744288209,27.27981293,128.3,128.26,25.03327031]
[1744744289120,25.03327031,128.28,128.23,37.1]
[1744744289299,25.03327031,128.28,128.23,62.13327031]
[1744744290120,7.79605519,128.27,128.23,62.13327031]
[1744744290490,7.79605519,128.27,128.24,25.03327031]
[1744744290695,7.79605519,128.27,128.23,62.13327031]
[1744744291713,27.28619318,128.27,128.23,62.13327031]
[1744744293021,7.79605519,128.27,128.24,25.03327031]
[1744744293231,7.79605519,128.27,128.25,25.03327031]
[1744744293796,7.79605519,128.27,128.24,25.03327031]
[1744744294009,7.79605519,128.27,128.23,62.13327031]
[1744744294209,7.79605519,128.27,128.22,0.063]
[1744744294210,7.79848709,128.23,128.22,0.063]
[1744744294428,32.8317574,128.23,128.22,0.063]
[1744744294609,7.79848709,128.23,128.22,0.063]
[1744744295113,32.8317574,128.23,128.22,0.063]
[1744744295919,7.79848709,128.23,128.22,0.063]
[1744744296424,7.79727095,128.25,128.22,0.063]
[1744744296723,32.83054126,128.25,128.22,0.063]
[1744744297120,7.79727095,128.25,128.22,25.09627031]
[1744744297618,18.64964886,128.15,128.14,0.063]
[1744744297820,18.64964886,128.15,128.12,0.063]
[1744744297821,18.64964886,128.12,128.05,30.063]
[1744744298027,25.03327031,128.06,128.05,0.063]
[1744744298197,32.84210991,128.06,128.05,0.063]
[1744744298619,7.8088396,128.06,128.05,0.063]
[1744744299119,18.64964886,128.05,128.0,23.26978311]
[1744744299312,25.03327031,128.02,128.0,23.26978311]
[1744744299701,25.03327031,128.03,127.99,25.03327031]
[1744744299921,25.03327031,128.03,127.98,25.09627031]
[1744744300308,7.81188969,128.01,127.98,0.063]
[1744744300923,7.81188969,128.01,127.98,25.09627031]
[1744744301331,32.84516,128.01,127.98,0.063]
[1744744301513,52.37488424,128.01,127.98,0.063]
[1744744302906,32.84516,128.01,127.98,0.063]
[1744744303106,32.84516,128.01,127.98,25.09627031]
[1744744303107,7.81188969,128.01,127.98,25.09627031]
[1744744303312,7.81188969,128.01,127.98,0.063]
[1744744303627,25.03327031,128.0,127.98,0.063]
[1744744304434,7.81311039,127.99,127.98,0.063]
[1744744305733,32.8463807,127.99,127.98,0.063]
[1744744306036,7.81311039,127.99,127.98,0.063]
[1744744312641,25.03327031,128.0,127.98,0.063]
[1744744312642,7.81264631,128.0,127.98,0.063]
[1744744312841,7.81264631,128.0,127.99,25.03327031]
[1744744313023,7.81264631,128.0,127.98,25.09627031]
[1744744313648,7.81127948,128.02,127.98,25.09627031]
[1744744315224,32.84454979,128.02,127.98,25.09627031]
[1744744316233,32.84454979,128.02,127.98,0.063]
[1744744316625,7.81127948,128.02,127.99,25.03327031]
[1744744317536,7.81127948,128.02,127.98,25.09627031]
[1744744320551,7.81127948,128.02,128.01,25.03327031]
[1744744320747,32.84332966,128.04,127.99,36.27327031]
[1744744321752,32.84332966,128.04,128.0,25.03327031]
[1744744322053,7.81005935,128.04,128.01,25.03327031]
[1744744322430,7.80974808,128.05,128.02,25.03327031]
[1744744323235,7.80974808,128.05,128.01,25.03327031]
[1744744323634,7.80974808,128.05,127.99,45.05296379]
[1744744323635,26.45665955,128.09,128.04,25.03327031]
[1744744323842,43.68291917,128.09,128.04,25.03327031]
[1744744324153,52.35994113,128.08,128.04,25.03327031]
[1744744324350,52.35994113,128.08,128.01,26.0]
[1744744324351,52.35994113,128.08,128.03,25.03327031]
[1744744324551,25.03327031,128.06,128.01,51.03327031]
[1744744324852,25.03327031,128.07,128.02,25.03327031]
[1744744325731,7.8088396,128.06,128.02,25.03327031]
[1744744326152,7.8088396,128.06,128.03,25.03327031]
[1744744327940,19.51905059,128.08,128.04,25.03327031]
[1744744327941,52.35994113,128.08,128.04,25.03327031]
[1744744328132,52.35994113,128.08,128.03,25.03327031]
[1744744329534,32.84089054,128.08,128.04,25.03327031]
[1744744329828,32.84089054,128.08,128.04,11.24]
[1744744331153,15.80378707,128.08,128.04,11.24]
[1744744331758,15.80378707,128.07,128.04,11.24]
[1744744332139,15.80378707,128.06,128.04,11.24]
[1744744332536,15.80378707,128.07,128.04,11.24]
[1744744332946,15.80378707,128.05,127.98,0.063]
[1744744333139,15.80378707,128.03,127.99,11.24]
[1744744333351,7.81127948,128.02,127.99,27.04378707]
[1744744335481,7.81066937,128.03,128.0,15.80378707]
[1744744337463,7.81027937,128.04,128.02,15.80378707]
[1744744337660,7.81027937,128.04,128.01,15.80378707]
[1744744338464,15.80378707,128.06,128.01,15.80378707]
[1744744338465,7.80944943,128.05,128.01,15.80378707]
[1744744339147,7.80944943,128.05,128.0,0.14216157]
[1744744339148,7.80944943,128.05,128.02,15.80378707]
[1744744339364,7.80944943,128.05,128.0,7.95459389]
[1744744339566,7.80944943,128.05,128.02,15.80378707]
[1744744340371,7.80944943,128.05,128.01,15.80378707]
[1744744341272,13.59721047,128.04,128.01,15.80378707]
[1744744342068,7.81028416,128.04,128.01,15.80378707]
[1744744342264,7.8088396,128.06,128.02,15.80378707]
[1744744342856,2.91097421,128.05,128.02,15.80378707]
[1744744343775,2.91097421,128.04,128.0,7.95459389]
[1744744343981,2.91097421,128.04,128.02,15.80378707]
[1744744344272,2.91097421,128.04,128.03,15.94594864]
[1744744344447,2.91097421,128.04,128.03,23.75661801]
[1744744344774,2.91097421,128.07,128.03,23.75661801]
[1744744344960,2.91097421,128.07,128.05,15.80378707]
[1744744345163,2.91097421,128.07,128.06,15.80378707]
[1744744345479,2.91097421,128.07,128.06,15.94594864]
[1744744345854,7.86921386,128.11,128.06,15.94594864]
[1744744346055,7.86921386,128.11,128.08,15.80378707]
[1744744346455,7.86921386,128.11,128.07,15.80378707]
[1744744347077,15.80378707,128.1,128.05,15.80378707]
[1744744347375,15.80378707,128.1,128.06,15.80378707]
[1744744348173,43.18748067,128.11,128.06,15.80378707]
[1744744348382,7.86921386,128.11,128.08,15.80378707]
[1744744348675,0.063,128.11,128.08,15.80378707]
[1744744348856,15.86678707,128.11,128.07,15.80378707]
[1744744349379,15.86678707,128.11,128.06,15.80378707]
[1744744349750,0.063,128.11,128.06,15.80378707]
[1744744349979,15.86678707,128.11,128.06,15.80378707]
[1744744350167,0.063,128.11,128.07,15.80378707]
[1744744351077,15.86678707,128.11,128.06,15.80378707]
[1744744351264,15.80378707,128.1,128.05,0.14216157]
[1744744351577,15.80378707,128.1,128.06,15.80378707]
[1744744351954,15.86678707,128.11,128.06,15.80378707]
[1744744353086,7.80640124,128.1,128.06,15.80378707]
[1744744353581,7.80640124,128.1,128.07,15.80378707]
[1744744353974,7.80640124,128.1,128.08,15.80378707]
[1744744354754,7.86904824,128.11,128.09,26.82378707]
[1744744355071,0.063,128.11,128.1,15.94594864]
[1744744356875,0.063,128.11,128.1,23.75234988]
[1744744357076,0.063,128.11,128.1,15.94594864]
[1744744358185,0.063,128.11,128.1,0.14216157]
[1744744358386,15.86678707,128.11,128.09,11.02]
[1744744358764,0.063,128.11,128.09,11.02]
[1744744359373,7.86879189,128.11,128.09,11.02]
[1744744360287,23.67257896,128.11,128.09,11.02]
[1744744360504,23.67257896,128.11,128.04,81.7387572]
[1744744360780,15.80378707,128.09,128.05,26.82378707]
[1744744361373,23.6114073,128.08,128.05,11.02]
[1744744361576,7.80762023,128.08,128.06,15.80378707]
[1744744362491,7.80640124,128.1,128.06,15.80378707]
[1744744364886,7.86908895,128.11,128.07,15.94594864]
[1744744365276,23.67287602,128.11,128.07,0.14216157]
[1744744365469,15.80378707,128.08,128.05,11.02]
[1744744365695,15.80378707,128.06,128.05,11.02]
[1744744366871,23.61262667,128.06,128.05,11.02]
[1744744367189,7.8088396,128.06,128.05,11.02]
[1744744373104,39.09195948,128.11,128.09,0.14216157]
[1744744373105,0.063,128.11,128.09,0.14216157]
[1744744373398,0.063,128.13,128.12,26.14216157]
[1744744373574,0.063,128.13,128.12,41.94594864]
[1744744374696,0.063,128.13,128.12,45.94727603]
[1744744375192,0.063,128.13,128.12,53.75245867]
[1744744377894,0.063,128.13,128.12,72.40210753]
[1744744381015,1e-08,128.13,128.12,152.55606473]
[1744744381188,0.063,128.17,128.16,26.14216157]
[1744744381385,0.063,128.17,128.16,68.76973571]
[1744744381586,1e-08,128.17,128.16,87.41938457]
[1744744382213,0.063,128.21,128.2,15.94594864]
[1744744383205,0.063,128.21,128.2,23.74626065]
[1744744385907,0.063,128.21,128.2,15.80378707]
[1744744386110,0.063,128.21,128.2,26.80378707]
[1744744386319,0.063,128.21,128.2,34.60409908]
[1744744386614,0.063,128.21,128.2,34.74626065]
[1744744388919,0.063,128.21,128.2,23.74626065]
[1744744389098,0.063,128.21,128.2,34.74626065]
[1744744390208,0.063,128.21,128.2,69.19969658]
[1744744390519,0.063,128.21,128.2,53.39590951]
[1744744390698,0.063,128.21,128.2,69.19969658]
[1744744391322,0.063,128.24,128.23,26.0]
[1744744391507,0.063,128.24,128.23,41.80378707]
[1744744392102,0.063,128.24,128.23,49.60227416]
[1744744394825,0.063,128.24,128.23,26.14216157]
[1744744394999,0.063,128.24,128.23,41.94594864]
[1744744398723,0.063,128.24,128.23,49.74443573]
[1744744399193,0.03,128.26,128.24,18.79181043]
[1744744399510,0.03,128.3,128.26,0.14216157]
[1744744399720,0.03,128.3,128.29,15.80378707]
[1744744402498,0.03,128.3,128.29,23.74078845]
[1744744403917,0.03,128.3,128.28,41.80378707]
[1744744404515,0.03,128.3,128.29,15.80378707]
[1744744405494,0.03,128.3,128.29,23.74078845]
[1744744406617,0.03,128.32,128.31,26.0]
[1744744406800,0.03,128.35,128.32,18.79181043]
[1744744407002,0.03,128.35,128.34,57.60757414]
[1744744408119,0.03,128.35,128.34,76.39938457]
[1744744408299,0.03,128.35,128.34,41.80378707]
[1744744409223,0.03,128.35,128.34,51.16359369]
[1744744409724,0.03,128.35,128.34,58.95539671]
[1744744409924,0.03,128.35,128.34,51.16359369]
[1744744412027,0.03,128.37,128.35,18.79181043]
[1744744412233,0.03,128.37,128.36,62.22575526]
[1744744413008,0.03,128.37,128.36,80.87540412]
[1744744413825,0.03,128.37,128.36,88.66599308]
[1744744414296,0.03,128.37,128.36,62.66599308]
[1744744415402,0.03,128.37,128.36,70.01634422]
[1744744415635,0.03,128.37,128.36,88.66599308]
[1744744416126,0.03,128.4,128.39,26.14216157]
[1744744416435,0.03,128.4,128.39,51.30575526]
[1744744418434,0.03,128.4,128.39,25.16359369]
[1744744423328,0.03,128.4,128.39,32.95236228]
[1744744424124,0.03,128.4,128.39,33.09452385]
[1744744424427,0.03,128.4,128.39,102.9077664]
[1744744427126,0.03,128.4,128.39,26.0]
[1744744427330,0.03,128.4,128.39,51.16359369]
[1744744427627,0.03,128.4,128.39,58.95236228]
[1744744428208,0.03,128.4,128.39,59.09452385]
[1744744429230,0.03,128.4,128.39,49.6429677]
[1744744430629,0.03,128.4,128.39,60.5629677]
[1744744431438,0.03,128.4,128.39,76.27500524]
[1744744431609,0.03,128.4,128.39,60.5629677]
[1744744433445,0.03,128.4,128.39,44.85093016]
[1744744433649,0.03,128.4,128.39,10.92]
[1744744436327,21.96583754,128.4,128.39,10.92]
[1744744436740,21.96583754,128.4,128.36,15.71203754]
[1744744437243,15.71203754,128.39,128.35,26.63203754]
[1744744438061,7.78937529,128.38,128.35,26.63203754]
[1744744439452,7.78876859,128.39,128.36,15.71203754]
[1744744440038,7.78876859,128.39,128.37,15.71203754]
[1744744440251,14.04221236,128.4,128.37,15.71203754]
[1744744440545,6.2538,128.4,128.37,15.71203754]
[1744744440945,0.03,128.4,128.39,15.71203754]
[1744744441145,0.03,128.4,128.39,15.85419911]
[1744744441543,0.03,128.4,128.39,23.6429677]
[1744744442854,0.03,128.4,128.39,39.35500524]
[1744744443751,0.03,128.4,128.39,84.0046541]
[1744744444761,0.03,128.4,128.39,65.35500524]
[1744744444964,0.03,128.4,128.39,49.6429677]
[1744744445352,0.03,128.4,128.39,65.35500524]
[1744744445664,0.03,128.43,128.4,18.79181043]
[1744744445866,0.03,128.43,128.42,15.71203754]
[1744744446464,0.03,128.43,128.42,15.85419911]
[1744744447268,0.03,128.43,128.41,10.92]
[1744744447649,0.03,128.43,128.42,15.71203754]
[1744744447846,0.03,128.43,128.41,10.92]
[1744744448178,15.74203754,128.43,128.41,10.92]
[1744744448852,15.71203754,128.42,128.41,10.92]
[1744744449244,32.93777564,128.42,128.41,10.92]
[1744744449863,62.93777564,128.42,128.41,10.92]
[1744744450367,37.78694907,128.42,128.41,10.92]
[1744744450966,62.93777564,128.42,128.41,10.92]
[1744744451159,90.55524832,128.42,128.37,10.92]
[1744744451357,55.15082657,128.41,128.37,36.07082657]
[1744744451560,30.0,128.41,128.37,36.07082657]
[1744744452560,7.78816199,128.4,128.37,36.07082657]
[1744744452960,7.78816199,128.4,128.37,10.92]
[1744744453166,7.78816199,128.4,128.37,36.07082657]
[1744744453345,37.78778968,128.41,128.37,36.07082657]
[1744744453674,37.78778968,128.41,128.38,25.15082657]
[1744744454259,37.78778968,128.41,128.37,36.07082657]
[1744744455173,7.78778968,128.41,128.37,36.07082657]
[1744744455654,7.78778968,128.41,128.38,25.15082657]
[1744744458078,7.78778968,128.41,128.39,30.0]
[1744744459480,7.78778968,128.41,128.39,55.15082657]
[1744744461059,7.78778968,128.41,128.39,25.15082657]
[1744744461689,7.78778968,128.41,128.38,30.0]
[1744744461690,0.03,128.43,128.38,30.0]
[1744744461868,0.03,128.43,128.42,25.29298814]
[1744744462060,0.03,128.43,128.42,36.21298814]
[1744744463683,0.03,128.43,128.42,43.99993721]
[1744744463878,0.03,128.43,128.42,69.99993721]
[1744744464177,0.03,128.43,128.42,99.99993721]
[1744744465484,0.03,128.43,128.42,118.64958607]
[1744744466168,0.03,128.43,128.42,172.80354327]
[1744744466381,0.03,128.45,128.44,26.14216157]
[1744744466562,0.03,128.45,128.44,99.942637]
[1744744467469,0.03,128.45,128.44,81.29298814]
[1744744468874,0.03,128.45,128.44,56.14216157]
[1744744469186,0.03,128.45,128.44,81.15082657]
[1744744469882,0.03,128.45,128.44,81.29298814]
[1744744470597,0.03,128.45,128.44,81.15082657]
[1744744471185,0.03,128.45,128.44,71.84182102]
[1744744471385,0.03,128.45,128.44,82.74182102]
[1744744471581,0.03,128.45,128.44,90.52755755]
[1744744472576,0.03,128.46,128.45,18.79181043]
[1744744472782,0.03,128.46,128.45,80.19112933]
[1744744473307,0.03,128.46,128.45,160.34508653]
[1744744473478,0.03,128.49,128.48,41.84182102]
[1744744474711,0.03,128.49,128.48,79.62513359]
[1744744477004,0.03,128.49,128.48,83.51981362]
[1744744478504,0.03,128.49,128.48,71.84182102]
[1744744478809,0.03,128.49,128.48,75.8123487]
[1744744478997,0.03,128.49,128.48,83.59566127]
[1744744481007,0.03,128.49,128.48,75.8123487]
[1744744481190,0.03,128.49,128.48,71.84182102]
[1744744482511,0.03,128.49,128.48,30.0]
[1744744483314,0.03,128.49,128.48,45.69965945]
[1744744484002,0.03,128.49,128.48,56.59965945]
[1744744484202,0.03,128.49,128.48,26.59965945]
[1744744486195,0.03,128.49,128.47,15.69965945]
[1744744486396,15.69965945,128.48,128.44,3.88197222]
[1744744486598,51.33394886,128.49,128.45,30.0]
[1744744486599,0.03,128.49,128.45,30.0]
[1744744486803,0.03,128.54,128.51,26.0]
[1744744487018,0.03,128.54,128.53,15.69965945]
[1744744487514,0.03,128.54,128.53,26.59965945]
[1744744489227,0.03,128.54,128.53,35.98655629]
[1744744492524,0.03,128.54,128.53,10.9]
[1744744492720,0.03,128.54,128.5,25.08655629]
[1744744492898,25.11655629,128.54,128.49,348.00051349]
[1744744493102,25.08655629,128.53,128.5,10.9]
[1744744493301,25.08655629,128.52,128.5,10.9]
[1744744494221,25.08655629,128.53,128.5,10.9]
[1744744494400,25.11655629,128.54,128.5,10.9]
[1744744494713,7.78028475,128.53,128.5,10.9]
[1744744495634,7.80992001,128.54,128.5,10.9]
[1744744495919,25.08655629,128.53,128.5,10.9]
[1744744496715,25.08655629,128.53,128.48,25.08655629]
[1744744496716,25.08655629,128.51,128.45,7.7848397]
[1744744496924,25.08655629,128.49,128.46,10.9]
[1744744497415,25.08655629,128.5,128.46,35.98655629]
[1744744498500,33.03315629,128.51,128.46,35.98655629]
[1744744498719,40.81519412,128.51,128.46,43.77103247]
[1744744499329,40.81519412,128.51,128.42,0.063]
[1744744499330,25.08655629,128.47,128.42,0.063]
[1744744499625,25.08655629,128.45,128.42,0.063]
[1744744499926,31.49735629,128.45,128.42,0.063]
[1744744500702,14.196018,128.45,128.42,0.063]